Cogmind - Beta 17.1 @@@ ROGUE MODE // 2026.08.30 @ 17:19:41 Player: UnderDoug Result: Destroyed by S-27 Virus with Autogun Performance ------------- Evolutions (3) 1500 Regions Visited (8) 1600 Robots Destroyed (51) 255 Value Destroyed (1649) 1649 Prototype IDs (19) 380 Alien Tech Used (0) 0 Bonus (1034) 1034 TOTAL SCORE: 6418 Bonus ------- High Alert Combat Kills 84 Follower Combat Kills 269 Entered Garrisons 200 Entered DSFs 500 Friendly Fire -19 Cogmind --------- Core Integrity 0/700 Matter 50/300 Energy 4/100 System Corruption 18% Temperature Cool (0) Movement Flying (35) Location -7/Garrison Parts ------- > --- POWER (3) -------- (None) > --- PROPULSION (4) --- VTOL Module > --- UTILITY (4) ------ (None) > --- WEAPON (2) ------- Dirty Datajack > --- INVENTORY (5) ---- Light Nuclear Core Peak State ------------ > --- POWER ------------ Light Nuclear Core Light Nuclear Core Meta Core > --- PROPULSION ------- Subdweller Monowheel Subdweller Monowheel Subdweller Monowheel > --- UTILITY ---------- Subdweller Optics Sensor Array Reflective Plating V3-11A's Pendant > --- WEAPON ----------- Heavy Assault Rifle Dirty Datajack > --- INVENTORY -------- Light Armor Plating Hardened Medium Armor Plating Light Cannon Improved Grenade Launcher Scrap Shield Fragment [Rating: 43] Favorites ----------- Power Meta Core Engine Light Ion Engine Power Core Meta Core Propulsion Subdweller Monowheel Leg Aluminum Leg Wheel Subdweller Monowheel Hover Unit Gravmag System Flight Unit VTOL Module Utility Sensor Array Device Sensor Array Storage Small Storage Unit Processor Signal Interpreter Protection Light Armor Plating Weapon Battle Cannon Energy Gun Small Laser Energy Cannon EM Pulse Cannon Ballistic Gun Heavy Assault Rifle Ballistic Cannon Battle Cannon Launcher Heavy Rocket Launcher Impact Weapon Powered Hammer Slashing Weapon Scythe Special Melee Weapon Dirty Datajack Build | -11 -10 -10 -8 -7 -7 -7 -7 -7 ------- Run | Yrd Mat Sub Mat Fac Was Fac DSF Gar Slots Evolved 6 | . . . 4 2 . . . . Power 2 | . . . 2 . . . . . Propulsion 2 | . . . 1 1 . . . . Utility 2 | . . . 1 1 . . . . Weapon . | . . . . . . . . . Parts Attached 72 | 6 8 12 31 9 . 1 2 3 Power 14 | 1 2 1 9 1 . . . . Engine 7 | 1 2 . 3 1 . . . . Core 7 | . . 1 6 . . . . . Reactor . | . . . . . . . . . Propulsion 22 | 2 1 4 9 4 . . . 2 Treads . | . . . . . . . . . Leg 5 | . . . 3 2 . . . . Wheel 13 | 2 1 4 6 . . . . . Hover 2 | . . . . 2 . . . . Flight 2 | . . . . . . . . 2 Utility 16 | 1 3 3 5 1 . 1 2 . Device 8 | . 2 2 1 . . 1 2 . Storage 1 | 1 . . . . . . . . Processor 2 | . . . 1 1 . . . . Hackware . | . . . . . . . . . Protection 5 | . 1 1 3 . . . . . Artifact . | . . . . . . . . . Weapon 20 | 2 2 4 8 3 . . . 1 Energy Gun 4 | 2 1 . . 1 . . . . Energy Cannon 1 | . . . . 1 . . . . Ballistic Gun 3 | . 1 . 1 . . . . 1 Ballistic Cannon 3 | . . 2 1 . . . . . Launcher 5 | . . . 5 . . . . . Special Weapon . | . . . . . . . . . Impact Weapon 1 | . . . . 1 . . . . Slashing Weapon 1 | . . . 1 . . . . . Piercing Weapon . | . . . . . . . . . Special Melee Weapon 2 | . . 2 . . . . . . Unidentified Prototypes 2 | . . 1 . 1 . . . . Parts Lost 40 | . . 7 19 . . . 8 6 Power 8 | . . . 6 . . . 2 . Propulsion 11 | . . 4 4 . . . 2 1 Utility 10 | . . 1 5 . . . 3 1 Weapon 11 | . . 2 4 . . . 1 4 Highest Loss Streak 8 | . . 3 8 . . . 5 4 To Critical Strikes . | . . . . . . . . . Average Backups 4 | 2 5 4 4 4 5 5 5 2 Power . | . 1 1 . . . . . . Propulsion . | 2 2 . . 1 . . . . Utility . | . . . 2 1 1 1 1 . Weapon 1 | . . 1 1 1 3 3 3 1 Tool/Special . | . . . . . . . . . Unused Backups 6 | . 5 . 1 . . . . . Power 1 | . 1 . . . . . . . Propulsion 4 | . 4 . . . . . . . Utility 1 | . . . 1 . . . . . Weapon . | . . . . . . . . . Tool/Special . | . . . . . . . . . Average Slot Usage (%) 82 | . 91 95 82 44 61 65 58 25 Engine 3 | . 14 1 2 . 7 7 4 . Core 10 | . . 9 19 7 7 7 4 . Leg 1 | . . . 1 4 23 23 16 . Wheel 19 | . 28 26 17 3 . . . . Device 16 | . 9 24 15 . . 4 15 5 Processor 2 | . . . 5 5 7 7 7 5 Protection 4 | . 5 5 5 . . . . . Energy Gun 5 | . 24 4 . 1 7 7 3 . Ballistic Gun 2 | . 3 1 2 . . . . . Ballistic Cannon 5 | . . 11 2 1 . . . 5 Launcher 1 | . . . 4 5 . . . . Slashing Weapon 1 | . . . 4 . . . . . Special Melee Weapon 4 | . . 9 2 . . . . . Peak Build Rating 43 | 6 7 31 43 31 28 32 39 12 Average Rating 23 | 4 6 24 33 22 28 30 25 10 On Entrance 17 | . 6 7 31 16 28 28 32 5 Avg Prop Armor Cover (%) 4 | . . 4 3 4 . . . . Naked Turns 5 | . . . . . . . . 5 Heaviest Build 36 | 13 13 19 36 25 22 26 30 10 Greatest Support 60 | 26 26 40 60 45 45 45 45 4 Greatest Overweight (x) 6 | . . 1 6 1 . . . 3 Average Overweight (x) . | . . . . . . . . 1 Largest Inventory Capacity 8 | 8 8 5 5 5 5 5 5 5 Average Capacity 5 | 7 5 5 5 5 5 5 5 5 Most Carried 8 | 6 8 5 5 5 5 5 5 4 Average Carried 4 | 3 5 4 4 4 5 5 5 2 Final Capacity 8 | 8 5 5 5 5 5 5 5 5 Final Carried 6 | 6 5 5 4 5 5 5 5 1 Class Distribution -------------------- 77% | Mutant 19% | Scavenger-Mutant Dominant Class ---------------- Mutant | -10/Materials Mutant | -10/Subcaves Scavenger-Mutant | -8/Materials Mutant | -7/Factory Mutant | -7/Waste Mutant | -7/Factory Mutant | -7/DSF Mutant | -7/Garrison Resources | -11 -10 -10 -8 -7 -7 -7 -7 -7 ----------- Run | Yrd Mat Sub Mat Fac Was Fac DSF Gar Matter Collected 1689 | 217 93 331 979 . . . . 69 Remotely . | . . . . . . . . . Salvage Created 1324 | . 132 265 767 . . . . 160 Parts 77 | . 17 14 39 . . . . 7 Haulers Intercepted . | . . . . . . . . . Recyclers Shooed 1 | . . . 1 . . . . . Parts Field Recycled . | . . . . . . . . . Retrieved Matter . | . . . . . . . . . Parts Self-Destructed 9 | . . 9 . . . . . . Prevented . | . . . . . . . . . Parts Restored . | . . . . . . . . . Kills | -11 -10 -10 -8 -7 -7 -7 -7 -7 ------- Run | Yrd Mat Sub Mat Fac Was Fac DSF Gar Combat Hostiles Destroyed 41 | . 6 9 20 . . . . 6 Melee 5 | . . . 5 . . . . . Guns 14 | . 6 2 6 . . . . . Cannons 8 | . . 7 . . . . . 1 AOE 14 | . . . 9 . . . . 5 Classes Destroyed 11 | . 4 3 4 . . . . . Worker 3 | . 1 . 2 . . . . . Builder 2 | . 1 . 1 . . . . . Tunneler 1 | . 1 . . . . . . . Recycler 1 | . . . 1 . . . . . Operator 1 | . . . 1 . . . . . Watcher 2 | . . . 2 . . . . . Swarmer 12 | . 6 1 1 . . . . 4 Grunt 16 | . . 1 14 . . . . 1 Brawler 3 | . . . 2 . . . . 1 Sentry 4 | . . 1 3 . . . . . Subdweller 6 | . . 6 . . . . . . Best Kill Streak 7 | . 6 2 7 . . . . 4 Combat Bots Only 5 | . 3 2 5 . . . . 4 Max Kills in Single Turn 4 | . 3 1 3 . . . . 4 Gunslinging . | . . . . . . . . . Exploded 4 | . . . 2 . . . . 4 Melee 1 | . . . 1 . . . . . Uniques/NPCs Destroyed . | . . . . . . . . . Combat | -11 -10 -10 -8 -7 -7 -7 -7 -7 -------- Run | Yrd Mat Sub Mat Fac Was Fac DSF Gar Hostile Shots Fired 374 | . 36 49 160 6 . . 59 64 Missed 126 | . 10 18 52 3 . . 25 18 Hits 248 | . 26 31 108 3 . . 34 46 Melee 3 | . . . 3 . . . . . Projectile 245 | . 26 31 105 3 . . 34 46 Critical Strikes 10 | . . 1 7 1 . . 1 . Damage Taken 5050 | . 227 639 2592 50 . . 817 725 Core 1373 | . 52 114 506 . . . 299 402 Absorbed by Shields 20 | . . . . . . . 20 . Ignored by Resistances 8 | . . . 8 . . . . . Core Remaining (%) 47 | 100 . 33 8 . . . . . Volleys Fired 152 | . 17 60 66 . . . . 9 Largest 2 | . 2 2 2 . . . . 2 Hottest 93 | . 80 73 59 . . . . 93 Shots Fired 210 | . 34 91 73 . 1 . . 11 Gun 94 | . 34 23 32 . 1 . . 4 Cannon 81 | . . 68 7 . . . . 6 Launcher 35 | . . . 34 . . . . 1 Special . | . . . . . . . . . Kinetic 119 | . . 74 39 . . . . 6 Thermal 44 | . 27 17 . . . . . . Explosive 35 | . . . 34 . . . . 1 Electromagnetic 12 | . 7 . . . 1 . . 4 Robot Hit Streak 8 | . 3 7 8 . 1 . . 3 Robot Miss Streak 6 | . 5 2 3 . 1 . . 6 Penetration Max . | . . . . . . . . . Secondary Targets . | . . . . . . . . . Shots Hit Robots 118 | . 14 41 56 . 1 . 2 4 Core Hits 86 | . 10 13 51 . . . . 12 Critical Kills . | . . . . . . . . . Critical Parts Destroyed . | . . . . . . . . . Critical Strikes . | . . . . . . . . . Melee Attacks 15 | . . 1 10 . . . 2 2 Impact 2 | . . . . . . . 2 . Slashing 9 | . . . 9 . . . . . Piercing 3 | . . . 1 . . . . 2 Sneak Attacks 2 | . . 1 1 . . . . . Combat Hostiles . | . . . . . . . . . Follow-up Attacks . | . . . . . . . . . Damage Inflicted 3978 | . 295 563 2596 . 15 . 37 472 Guns 526 | . 177 55 279 . 15 . . . Cannons 660 | . . 508 87 . . . . 65 Explosions 2533 | . 118 . 2008 . . . . 407 Melee 243 | . . . 206 . . . 37 . Ramming 16 | . . . 16 . . . . . Kinetic 874 | . . 508 366 . . . . . Thermal 423 | . 254 55 . . . . . 114 Explosive 2301 | . . . 2008 . . . . 293 Electromagnetic 121 | . 41 . . . 15 . . 65 Impact 37 | . . . . . . . 37 . Slashing 200 | . . . 200 . . . . . Piercing 6 | . . . 6 . . . . . Highest Corruption 18 | . . . 5 1 18 18 18 18 Average Corruption 14 | . . . 5 1 7 18 18 18 Corruption Purged . | . . . . . . . . . Corruption Blocked . | . . . . . . . . . Effects 26 | . . . 1 . 4 2 8 11 Message Errors 2 | . . . . . . . 1 1 Matter Fused 5 | . . . . . 1 . . 4 Heat Flow Errors 5 | . . . 1 . . . 2 2 Energy Discharges 7 | . . . . . 1 1 3 2 Parts Rejected 1 | . . . . . . . 1 . Data Loss (minor) 4 | . . . . . 1 1 . 2 Misfires 1 | . . . . . 1 . . . Misdirections 1 | . . . . . . . 1 . Overload Shots . | . . . . . . . . . Overflow Damage 77 | . . . 67 . . . . 10 Projectiles 3 | . . . . . . . . 3 Explosions 74 | . . . 67 . . . . 7 Melee . | . . . . . . . . . Knockbacks 4 | . . 4 . . . . . . Impact . | . . . . . . . . . Kinetic 4 | . . 4 . . . . . . Secondary . | . . . . . . . . . Self-Inflicted Damage 285 | . 23 . 199 . . . . 63 Shots 8 | . 1 . 6 . . . . 1 Rammed 3 | . . . 3 . . . . . Targets Rammed 3 | . . . 3 . . . . . Kicked . | . . . . . . . . . Crushed . | . . . . . . . . . Highest Temperature 138 | . 138 11 113 . 16 . 134 83 Average Temperature 40 | . 53 11 34 . 12 . 77 43 Received Heat Transfer 801 | . . 144 513 . . . 90 54 Siege Activations . | . . . . . . . . . Martial Activations . | . . . . . . . . . Shielding Activations . | . . . . . . . . . Robots Disrupted . | . . . . . . . . . Combat Hostiles . | . . . . . . . . . Robots Corrupted . | . . . . . . . . . Combat Hostiles . | . . . . . . . . . Parts Fried . | . . . . . . . . . Impact Corruptions . | . . . . . . . . . Robots Melted . | . . . . . . . . . Combat Hostiles . | . . . . . . . . . Parts Melted 1 | . 1 . . . . . . . Heat Transferred 775 | . 500 125 . . . . . 150 Parts Sabotaged . | . . . . . . . . . Parts Stolen . | . . . . . . . . . Parts Stripped . | . . . . . . . . . Power Chain Reactions 2 | . 1 . . . . . . 1 Alert | -11 -10 -10 -8 -7 -7 -7 -7 -7 ------- Run | Yrd Mat Sub Mat Fac Was Fac DSF Gar Maximum Alert Level 2 | . . . 2 1 . . . . Low Security (%) 68 | 100 100 . 44 35 100 100 100 100 Level 1 12 | . . . 16 64 . . . . Level 2 19 | . . . 39 . . . . . Level 3 . | . . . . . . . . . Level 4 . | . . . . . . . . . Level 5 . | . . . . . . . . . High Security . | . . . . . . . . . Max Security . | . . . . . . . . . Peak Influence 598 | . 93 . 598 256 58 . 20 131 Initial 256 | . . . . 256 58 . . . Average 151 | . 28 . 262 214 22 . 1 26 Influence Increases 1876 | . 208 60 1387 . . . 30 191 Destroy 0b10 Robot/C 920 | . 120 60 620 . . . . 120 Destroy 0b10 Robot/NC 50 | . 15 . 35 . . . . . Destroy Leader 184 | . 20 . 144 . . . . 20 Allied During Kill 69 | . . . 69 . . . . . Successful Hack 30 | . 5 . 9 . . . . 16 Disable Machine 135 | . 15 . 120 . . . . . Destroy Structure 278 | . 3 . 255 . . . . 20 Lose Combat Pursuer 210 | . 30 . 135 . . . 30 15 Influence Decreases 1745 | . 208 60 822 399 166 . 30 60 Entered New Map 417 | . . . . 309 108 . . . Time Decay 850 | . 208 50 464 90 38 . . . Lost Part 290 | . . 10 190 . . . 30 60 Lost Ally 188 | . . . 168 . 20 . . . Squads Dispatched 12 | . 1 . 8 1 . . 2 . Investigation 2 | . . . 1 1 . . . . Extermination . | . . . . . . . . . Reinforcement 8 | . 1 . 5 . . . 2 . Assault . | . . . . . . . . . Garrison 2 | . . . 2 . . . . . Intercept . | . . . . . . . . . Searches Triggered . | . . . . . . . . . Construction Impeded 1 | . . . 1 . . . . . Haulers Reinforced . | . . . . . . . . . Active Scanning Responses . | . . . . . . . . . Cargo Convoy Interrupts . | . . . . . . . . . Stealth | -11 -10 -10 -8 -7 -7 -7 -7 -7 --------- Run | Yrd Mat Sub Mat Fac Was Fac DSF Gar Distress Signals 5 | . . . 5 . . . . . Communications Jammed . | . . . . . . . . . Distress Signals . | . . . . . . . . . Times Spotted 105 | . 13 15 49 1 3 . 9 15 Peak Tracking Total 12 | . 7 3 11 1 3 . 9 12 Tactical Retreats 13 | . 1 . 8 . 1 . 2 1 ECM-based Alert Blocks 2 | . . . . . . . 2 . Traps | -11 -10 -10 -8 -7 -7 -7 -7 -7 ------- Run | Yrd Mat Sub Mat Fac Was Fac DSF Gar Traps Triggered 6 | . . 2 1 1 . . . 2 Indirectly . | . . . . . . . . . Trap Hack Attempts . | . . . . . . . . . Triggered . | . . . . . . . . . Disarmed 1 | . 1 . . . . . . . Reprogrammed . | . . . . . . . . . Reused . | . . . . . . . . . Traps Extracted . | . . . . . . . . . Installed . | . . . . . . . . . Triggered . | . . . . . . . . . Machines | -11 -10 -10 -8 -7 -7 -7 -7 -7 ---------- Run | Yrd Mat Sub Mat Fac Was Fac DSF Gar Machines Disabled 10 | . 1 1 8 . . . . . Max in Single Turn 2 | . 1 1 2 . . . . . Machines Repaired . | . . . . . . . . . Machines Dismantled . | . . . . . . . . . Machines Sabotaged . | . . . . . . . . . Overloaded Fab Kills . | . . . . . . . . . Hacking | -11 -10 -10 -8 -7 -7 -7 -7 -7 --------- Run | Yrd Mat Sub Mat Fac Was Fac DSF Gar Machines Accessed 14 | . 6 2 3 1 . 1 . 1 Terminals 9 | . 5 . 2 . . 1 . 1 Fabricators . | . . . . . . . . . Repair Stations . | . . . . . . . . . Recycling Units 2 | . 1 . . 1 . . . . Scanalyzers 1 | . . . 1 . . . . . Garrison Access . | . . . . . . . . . Total Hacks 43 | . 17 4 16 3 . 2 . 1 Successful 25 | . 8 4 9 2 . 1 . 1 Failed 18 | . 9 . 7 1 . 1 . . Catastrophic 2 | . 2 . . . . . . . Database Lockouts . | . . . . . . . . . Manual . | . . . . . . . . . Terminals 30 | . 16 . 11 . . 2 . 1 Fabricators . | . . . . . . . . . Repair Stations . | . . . . . . . . . Recycling Units 4 | . 1 . . 3 . . . . Scanalyzers 5 | . . . 5 . . . . . Garrison Access . | . . . . . . . . . Terminal Hacks 18 | . 7 4 5 . . 1 . 1 Record 4 | . . 3 1 . . . . . Robot Analysis 1 | . . . 1 . . . . . Prototype ID Bank 2 | . 2 . . . . . . . Open DSF 1 | . . . . . . 1 . . Emergency Access Points 2 | . 1 . 1 . . . . . Alert Level 1 | . 1 . . . . . . . Locate Traps 1 | . 1 . . . . . . . Disarm Traps 1 | . 1 . . . . . . . Investigation Status 2 | . 1 . 1 . . . . . Zone Layout 1 | . . . 1 . . . . . Patrol Navigation 1 | . . . . . . . . 1 Proto ID Catalog 1 | . . 1 . . . . . . Fabricator Hacks . | . . . . . . . . . Repair Station Hacks . | . . . . . . . . . Recycling Unit Hacks 3 | . 1 . . 2 . . . . Report Inventory 2 | . 1 . . 1 . . . . Retrieve Components 1 | . . . . 1 . . . . Scanalyzer 4 | . . . 4 . . . . . Retrieve Study 4 | . . . 4 . . . . . Garrison Access Hacks . | . . . . . . . . . Unauthorized Hacks . | . . . . . . . . . Terminals . | . . . . . . . . . Fabricators . | . . . . . . . . . Repair Stations . | . . . . . . . . . Recycling Units . | . . . . . . . . . Scanalyzers . | . . . . . . . . . Garrison Access . | . . . . . . . . . Data Cores Recovered . | . . . . . . . . . Used . | . . . . . . . . . Hacking Detections 11 | . 5 . 3 1 . 1 . 1 Full Trace Events 4 | . . . 3 1 . . . . Feedback Events 1 | . . . . 1 . . . . Corruption 1 | . . . . 1 . . . . Feedback Blocked . | . . . . . . . . . Robot Schematics Acquired . | . . . . . . . . . Robots Built . | . . . . . . . . . Authchips . | . . . . . . . . . Time . | . . . . . . . . . Total Robot Build Rating . | . . . . . . . . . Part Schematics Acquired . | . . . . . . . . . Parts Built . | . . . . . . . . . Authchips . | . . . . . . . . . Time . | . . . . . . . . . Total Part Build Rating . | . . . . . . . . . Part Studies Acquired 4 | . . . 4 . . . . . Parts Repaired . | . . . . . . . . . Time . | . . . . . . . . . Parts Recycled . | . . . . . . . . . Recycled Matter . | . . . . . . . . . Retrieved Matter . | . . . . . . . . . Retrieved Components 3 | . . . . 3 . . . . Parts Scanalyzed . | . . . . . . . . . Part Schematics Acquired . | . . . . . . . . . Parts Damaged . | . . . . . . . . . Bothacking | -11 -10 -10 -8 -7 -7 -7 -7 -7 ------------ Run | Yrd Mat Sub Mat Fac Was Fac DSF Gar Used RIF Installer . | . . . . . . . . . Robots Hacked 1 | . . 1 . . . . . . Non-combat 1 | . . 1 . . . . . . Combat . | . . . . . . . . . Robot Hacks Applied 1 | . . 1 . . . . . . parse_system 1 | . . 1 . . . . . . Relay Couplers Released . | . . . . . . . . . Fabnet Peak Effective % . | . . . . . . . . . Robots Rewired . | . . . . . . . . . Allies Hacked . | . . . . . . . . . Hacks Repelled . | . . . . . . . . . Allies | -11 -10 -10 -8 -7 -7 -7 -7 -7 -------- Run | Yrd Mat Sub Mat Fac Was Fac DSF Gar Total Allies 11 | . . 10 . . 1 . . . Largest Group 10 | . . 10 10 . 1 . . . Highest-Rated Group 194 | . . 194 194 . 31 . . . Highest-Rated Ally 31 | . . 23 23 . 31 . . . Total Orders . | . . . . . . . . . Ally Attacks 73 | . . 1 65 . 7 . . . Total Damage 1096 | . . 22 992 . 82 . . . Kills 11 | . . . 11 . . . . . Allies Corrupted . | . . . . . . . . . Allies Melted 1 | . . . 1 . . . . . Intel | -11 -10 -10 -8 -7 -7 -7 -7 -7 ------- Run | Yrd Mat Sub Mat Fac Was Fac DSF Gar Active Infowar (turns) 3003 | . 479 1885 586 . . . 53 . Optics 1446 | . . 1112 334 . . . . . Sensors 2588 | . 117 1885 586 . . . . . Structural 362 | . 362 . . . . . . . ECM 53 | . . . . . . . 53 . Robot Analysis Total 1 | . . . 1 . . . . . Derelict Logs Recovered 3 | . . 3 . . . . . . Drone Launches . | . . . . . . . . . Drone Recoveries . | . . . . . . . . . Exploration | -11 -10 -10 -8 -7 -7 -7 -7 -7 ------------- Run | Yrd Mat Sub Mat Fac Was Fac DSF Gar Turns Passed 4812 | 45 696 1885 1427 185 116 56 138 264 Spaces Moved 3585 | 34 534 1654 868 142 95 45 113 100 Core 89 | 2 . . 11 . . . 14 62 Treads . | . . . . . . . . . Legs 274 | . . . 7 28 95 45 99 . Wheels 3148 | 32 534 1654 850 78 . . . . Hover 36 | . . . . 36 . . . . Flight 38 | . . . . . . . . 38 Fastest Speed 35 | 50 90 80 100 100 123 123 50 35 Average Speed 102 | 90 90 96 113 108 123 123 112 118 Slowest Speed 350 | 100 90 110 350 123 123 123 123 200 Overloaded Moves . | . . . . . . . . . Propulsion Burnouts . | . . . . . . . . . Robots Hopped . | . . . . . . . . . Potential Cave-ins . | . . . . . . . . . Cave-ins Triggered . | . . . . . . . . . Exploration Rate (%) 46 | 4 85 77 51 3 78 1 89 28 Regions Visited 8 Branch Regions 1 Pre-discovered Areas 1 | . . 1 . . . . . . Known Exits Taken 2 | . . . 1 . . 1 . . Unknown Exits Taken 3 | 1 1 1 . . . . . . Scrap Searched 3 | . . 3 . . . . . . Spaces Dug 4 | . . 3 1 . . . . . Terrain Destroyed 322 | . 2 4 295 . . . . 21 Melee 1 | . . . 1 . . . . . Projectile 4 | . . 4 . . . . . . AOE 317 | . 2 . 294 . . . . 21 Terrain Rammed . | . . . . . . . . . Walls Destroyed . | . . . . . . . . . Machines Disabled . | . . . . . . . . . Actions | -11 -10 -10 -8 -7 -7 -7 -7 -7 --------- Run | Yrd Mat Sub Mat Fac Was Fac DSF Gar Total 4491 | 45 718 1838 1224 172 94 45 118 237 Wait 531 | . 139 103 196 10 . . 2 81 Move 3578 | 33 533 1653 867 142 94 44 112 100 Hop . | . . . . . . . . . Pick Up 45 | 6 8 4 17 6 . . . 4 Fast Attach 36 | 6 3 7 14 3 . 1 2 . Attach 32 | . . 4 15 4 . . . 9 Detach 4 | . . 1 2 . . . . 1 Swap 25 | . 5 2 14 4 . . . . Drop 40 | . 13 3 20 3 . . . 1 Fire 152 | . 17 60 66 . . . . 9 Melee 15 | . . 1 10 . . . 2 2 Ram 3 | . . . 3 . . . . . Kick . | . . . . . . . . . Crush . | . . . . . . . . . Escape Stasis 30 | . . . . . . . . 30 Rewire . | . . . . . . . . . Trap . | . . . . . . . . . Miscellaneous . | . . . . . . . . . Route ------- -11/Scrapyard -10/Materials (discovered 5 exits: [*Mat x2] / [*Min x2] / *Sub) -10/Subcaves (discovered 2 exits: *Mat / Rec) -8/Materials (discovered 2 exits: *Fac x2) -7/Factory -7/Waste -7/Factory -7/DSF -7/Garrison History --------- Turn | Location | Event 15 | -11/Scrapyard | Discovered new exit (range 15) 46 | -11/Scrapyard | Entered Materials 124 | -10/Materials | Discovered new exit (range 3) 310 | -10/Materials | Build established: Mutant 348 | -10/Materials | Discovered new exit (range 9) 373 | -10/Materials | Discovered new exit (range 14) 553 | -10/Materials | Discovered new exit (range 4) 681 | -10/Materials | Discovered new exit (range 10) 742 | -10/Materials | Entered Subcaves 749 | -10/Subcaves | Identified exit to Recycling 751 | -10/Subcaves | Learned 4 Materials zone layouts 941 | -10/Subcaves | Visited 4L-MR0's lab 964 | -10/Subcaves | Found Meta Core 965 | -10/Subcaves | Attached Meta Core, gained temporary slots: Propulsion, Utility, Weapon 1068 | -10/Subcaves | A swath of the cavern ceiling suddenly collapsed 1079 | -10/Subcaves | Learned location of Zion (-7) 1241 | -10/Subcaves | Visited Clippyterm 1243 | -10/Subcaves | Learned Factory emergency access door positions 1431 | -10/Subcaves | Shifting Twisted Machinery released Barrage Gun 1431 | -10/Subcaves | Shifting Twisted Machinery released Battle Cannon 1497 | -10/Subcaves | Core integrity fell below 50% 1548 | -10/Subcaves | Discovered new exit (range 20) 1693 | -10/Subcaves | Lost 3 parts (1n2w) 1736 | -10/Subcaves | Visited triangular shrine 1744 | -10/Subcaves | Found Prototype Device 1744 | -10/Subcaves | Identified V3-11A's Pendant 1749 | -10/Subcaves | Befriended Subdweller 1887 | -10/Subcaves | A swath of the cavern ceiling suddenly collapsed 1889 | -10/Subcaves | Befriended Subdweller 2032 | -10/Subcaves | A Subdweller sparked back to life 2032 | -10/Subcaves | A Subdweller sparked back to life 2032 | -10/Subcaves | A Subdweller sparked back to life 2034 | -10/Subcaves | Befriended Subdweller 2034 | -10/Subcaves | Befriended Subdweller 2034 | -10/Subcaves | Befriended Subdweller 2054 | -10/Subcaves | Befriended Subdweller 2209 | -10/Subcaves | Befriended Subdweller 2209 | -10/Subcaves | Befriended Subdweller 2224 | -10/Subcaves | Befriended Subdweller 2224 | -10/Subcaves | Befriended Subdweller 2264 | -10/Subcaves | Shifting Twisted Machinery released Battle Cannon 2272 | -10/Subcaves | Shifting Twisted Machinery released Multitool 2627 | -10/Subcaves | Entered Materials 2627 | -8/Materials | Accompanied by 10 allies 2627 | -8/Materials | Evolved 4 slots: Power x2, Propulsion x1, Utility x1 2628 | -8/Materials | Identified exit to Factory 2826 | -8/Materials | Lost 8 allies 2949 | -8/Materials | Discovered exit to Factory (range 4) 3312 | -8/Materials | Build established: Scavenger-Mutant 3483 | -8/Materials | Lost 4 parts (1p1n1u1w) 3675 | -8/Materials | Core integrity fell below 50% 3716 | -8/Materials | Lost 8 parts (3p2n2u1w) 3924 | -8/Materials | Garrison activated, responded to threat 3954 | -8/Materials | Build established: Mutant 3986 | -8/Materials | Core integrity fell below 20% 4054 | -8/Materials | Entered Factory 4054 | -7/Factory | Evolved 2 slots: Propulsion x1, Utility x1 4057 | -7/Factory | Lost 5 parts (1p1n2u1w) 4239 | -7/Factory | Sucked down chute 4239 | -7/Factory | Entered Waste 4240 | -7/Waste | Met a frightened Derelict 4254 | -7/Waste | EMP discharged 4259 | -7/Waste | Spotted C-40 Crusher 4289 | -7/Waste | Spotted C-40 Crusher 4291 | -7/Waste | Spotted C-40 Crusher 4297 | -7/Waste | Spotted C-40 Crusher 4306 | -7/Waste | Spotted C-40 Crusher 4340 | -7/Waste | Discovered new exit (range 12) 4354 | -7/Waste | EMP discharged 4354 | -7/Waste | System corruption reached 10% 4355 | -7/Waste | Entered Factory 4410 | -7/Factory | Identified exit to DSF 4411 | -7/Factory | Entered DSF 4436 | -7/DSF | Additional patrols routed to DSF 4521 | -7/DSF | Lost 5 parts (2p1n1u1w) 4542 | -7/DSF | Discovered new exit (range 13) 4549 | -7/DSF | Entered Garrison 4573 | -7/Garrison | Lost 3 parts (1n2u) 4751 | -7/Garrison | Core integrity fell below 50% 4805 | -7/Garrison | Core integrity fell below 20% 4813 | -7/Garrison | Destroyed by S-27 Virus with Autogun Last Messages --------------- Discarded Adv. Terrain Scan Processor. Acquired 18 matter. Acquired 28 matter. Acquired 23 matter. Acquired Autogun. System corrupted: Component data lost. C-30 ARC bursts open, deploying its payload. G-47 Trooper unfolds itself. VTOL Module destroyed. Autogun destroyed. EM Pulse Cannon destroyed. Hvy. Rocket Launcher destroyed. Destroyed Hvy. Rocket Launcher. G-47 Trooper destroyed. S-27 Virus destroyed. B-48 Gladiator destroyed. Destroyed Lgt. Nuclear Core. S-27 Virus destroyed. Acquired Lgt. Nuclear Core. Acquired VTOL Module. Map ----- +----------------------------------------------------+ | ?????????????????????????????????????????????????? | | ?????????????????????????????????????????????????? | | ?????????????????????????????????????????????????? | | ?????????????????????????????????????????????????? | | ?????????????????????????????????????????????????? | | ?????????????????????????????????????????????????? | | ?????????????????????????????????????????????????? | | ?????????????????????????????????????????????????? | | ?????????????????????????????????????????????????? | | ?????????????????????????????????????????????????? | | ?????????????????????????????????????????????????? | | ?????????????????????????????????????????????????? | | ?????????????????????????????????????????????????? | | ???????????????####??????????????????????????????? | | ???????????????# ??????????????????????????????? | | ???????????????# ??????????????????????????????? | | ???????????????# #?##???????????????????????????? | | ???????????????# #?# #??????????????????????????? | | ???????????????# ### ####??##??????????????????? | | ???????????????# +? #??%???????????????????? | | ???????????????# #?## g ##? #???????????????????? | | ???????????????# #?# #? #???????????????????? | | ########## ## ### # #???????????????????? | | ### s ## #???????????????????? | | ?? gg l%%* #???????????????????? | | ??? g gs@ #???????????????????? | | ????# ## ## #### # ####???????????????????? | | ????# ## ## #??#####??????????????????????? | | ????" "?????????????????????????????? | | ????" "?????????????????????????????? | | ????" "?????????????????????????????? | | ????" "?????????????????????????????? | | ????# ## ## #?????????????????????????????? | | ##### ## ## #?????????????????????????????? | | #?????????????????????????????? | | #?????????????????????????????? | | ##### #?????????????????????????????? | | ????######""""## ##?????????????????????????????? | | ???????????????# #??????????????????????????????? | | ???????????????# #??????????????????????????????? | | ???????????????? #??????????????????????????????? | | ???????????????? #??????????????????????????????? | | ???????????????? #??????????????????????????????? | | ????????????????? ???????????????????????????????? | | ### #?????????????????????????????????????????? | | #????????????????????????????????????????? | | ## #????????????????????????????????????????? | | ?????????????????????????????????????????????????? | | ?????????????????????????????????????????????????? | | ?????????????????????????????????????????????????? | +----------------------------------------------------+ Best States ------------- Heat Dissipation 34 Energy Generation 35 Energy Capacity 510 Matter Stores 300 Matter Capacity 300 Sight Range 21 Robot Scan Range 14 Terrain Scan Density 210 ECM Strength 2 Armor Coverage 600 Resistance: TH 10 Evasion (%) 63 Item Schematics ----------------- None Robot Schematics ------------------ None Fabricated ------------ Nothing Repaired ---------- Nothing Studied --------- Imp. Ion Engine | -8/Materials | Hacked Lgt. Ion Engine | -8/Materials | Hacked Lgt. Cannon | -8/Materials | Hacked Imp. Grenade Launcher | -8/Materials | Hacked Alien Tech Used ----------------- None Achievements -------------- Heavy Suspicion SUBSUB The More The Merrier Window Shopping Challenges ------------ None Game ------ Seed PiercelightCorruptionPendant Manual? 0 Play Time 00:58:59 Cumulative 7.3 hours Start 2026.08.30 @ 16:23:06 End 2026.08.30 @ 17:19:41 Sessions 1 Manual Loads 0 Difficulty Rogue Special Mode None Game No. 14 Rogue 14 Adventurer 0 Explorer 0 Win Type - Total 0 Types 0/0/0/0/0/0/0/0/0/0 Lore% 17 Gallery% 11 Achievement% 12 Wizard Run 0 Options --------- Layout 1 ASCII 0 Keyboard 0 Movement Numpad Keybinds 0 Fullscreen 2 Font 24/X11 Map View 50x35 Zoom Use 0% Tactical HUD 0 Map Filters NONE Filters NONE Steam 1 RUN: 3456bbcc-3d5f-4318-b5e1-2782cca6e67f